bitfinex-derivatives/quotes_ETHF0:USTF0_20260223
["timestamp","ask_amount","ask_price","bid_price","bid_amount"]
[1771867178442,0.00657743,1865.8,1865.0,3.48197511]
[1771867178833,0.00657743,1865.8,1865.1,0.81609833]
[1771867179142,0.27457743,1865.8,1864.6,3.48197511]
[1771867179339,1.49314841,1865.8,1864.6,3.48197511]
[1771867179740,0.27457743,1865.8,1864.6,3.48197511]
[1771867179940,0.00657743,1865.8,1864.6,3.48676903]
[1771867182047,0.00657743,1865.8,1864.8,3.48197511]
[1771867183440,1.34177385,1865.8,1864.8,3.48197511]
[1771867183842,1.34177385,1865.8,1864.5,3.48197511]
[1771867183843,1.32271477,1865.4,1864.5,3.48197511]
[1771867184442,0.26805,1865.5,1864.5,3.48197511]
[1771867184443,1.59076477,1865.5,1864.5,3.48197511]
[1771867184849,1.59076477,1865.5,1864.5,3.48640464]
[1771867185245,1.59076477,1865.5,1864.5,0.00442953]
[1771867185246,1.5833665,1865.2,1864.5,0.00442953]
[1771867185550,1.5833665,1865.2,1864.5,3.48640464]
[1771867186243,0.2681,1865.2,1864.5,3.48640464]
[1771867186449,1.30282395,1865.7,1864.5,3.48640464]
[1771867186640,1.58160905,1865.4,1864.5,3.48640464]
[1771867186841,0.26806,1865.4,1864.5,3.48640464]
[1771867187252,1.56979137,1865.4,1864.5,3.48640464]
[1771867187750,1.56979137,1865.4,1862.8,13.20696]
[1771867187751,13.19308,1864.8,1863.0,3.63263562]
[1771867188049,6.5965,1864.9,1861.7,3.63263562]
[1771867188050,1.30498768,1863.1,1861.7,3.63263562]
[1771867188254,0.26838,1863.2,1861.9,3.63263562]
[1771867188255,1.30498768,1863.2,1861.9,3.63263562]
[1771867188452,1.30498768,1863.5,1862.0,3.63263562]
[1771867188857,1.31075795,1863.5,1862.2,3.63263562]
[1771867189149,0.00577027,1863.5,1862.4,3.63263562]
[1771867189556,0.00577027,1863.5,1862.6,3.63263562]
[1771867190553,6.60181,1863.4,1862.6,3.63263562]
[1771867190751,6.60225,1863.2,1862.6,3.63263562]
[1771867190947,6.60295,1863.0,1862.1,3.63263562]
[1771867191350,0.26838,1863.2,1862.1,3.63263562]
[1771867191954,0.26838,1863.2,1862.3,3.63263562]
[1771867193450,0.00577027,1863.5,1862.4,7.05131951]
[1771867193645,6.86997,1863.4,1862.5,3.63263562]
[1771867194051,6.87069,1863.2,1862.5,3.63263562]
[1771867194951,0.26838,1863.2,1862.5,3.63263562]
[1771867195256,6.8706,1863.2,1862.5,3.63263562]
[1771867196259,0.26838,1863.2,1862.5,3.63263562]
[1771867197657,0.26838,1863.2,1862.7,3.63263562]
[1771867198555,0.26853,1862.2,1861.6,3.63263562]
[1771867198853,0.26846,1862.7,1861.6,2.62978398]
[1771867199258,0.26851,1862.4,1861.6,2.62978398]
[1771867199653,0.26851,1862.4,1861.6,2.63498148]
[1771867199854,6.87358,1862.4,1861.6,2.63498148]
[1771867200062,0.26855,1862.0,1861.6,2.63498148]
[1771867200255,0.27418842,1862.0,1861.6,2.63498148]
[1771867200455,6.88077842,1862.0,1861.6,0.0051975]
[1771867200656,0.26859,1861.7,1861.4,4.45120338]
[1771867200856,0.00563842,1862.0,1861.1,3.63263562]
[1771867201157,0.26852,1862.3,1861.3,3.63263562]
[1771867201460,6.87289,1862.6,1861.3,3.63263562]
[1771867201664,4.0350273,1862.6,1861.5,3.63263562]
[1771867201860,0.2684,1863.1,1861.5,3.63263562]
[1771867202060,0.26845,1862.8,1861.7,3.63263562]
[1771867202463,0.26845,1862.8,1861.9,3.63263562]
[1771867202762,3.77077937,1863.1,1861.9,3.63263562]
[1771867202763,0.00423207,1863.1,1862.0,7.02877376]
[1771867202954,6.60327,1862.9,1862.1,3.63263562]
[1771867203157,0.26845,1862.8,1862.1,3.63263562]
[1771867203355,0.00423207,1863.1,1862.1,3.63263562]
[1771867203660,6.87028,1863.3,1862.3,3.63263562]
[1771867204263,0.26843,1862.9,1862.3,3.63263562]
[1771867204764,0.2752417,1862.9,1862.3,3.63263562]
[1771867205160,0.26835,1863.4,1862.5,3.63263562]
[1771867205566,6.60113,1863.6,1862.7,3.63263562]
[1771867205860,0.26826,1864.0,1862.8,7.00830184]
[1771867206058,0.27482943,1864.0,1862.9,3.63263562]
[1771867206254,0.26826,1864.0,1862.9,3.63862406]
[1771867206565,3.7665473,1864.4,1863.1,3.63263562]
[1771867206765,3.7665473,1864.4,1863.3,3.63263562]
[1771867206965,0.26819,1864.5,1863.3,3.63263562]
[1771867207160,3.7665473,1864.9,1863.5,3.63263562]
[1771867207363,0.26812,1865.0,1863.5,3.63263562]
[1771867207660,0.26812,1865.0,1863.7,3.63263562]
[1771867207965,0.26812,1865.0,1863.8,6.8254674]
[1771867207966,0.26818,1864.6,1863.8,6.8254674]
[1771867208163,0.27347933,1864.6,1863.9,3.63263562]
[1771867209267,6.59547,1865.2,1864.1,3.63263562]
[1771867209465,6.86363,1865.1,1864.1,3.63263562]
[1771867209865,0.26811,1865.1,1864.1,3.63263562]
[1771867210158,0.27374827,1865.1,1864.3,3.63263562]
[1771867210463,0.27374827,1865.1,1864.3,3.63891232]
[1771867210662,3.7665473,1865.3,1864.3,3.63891232]
[1771867210866,0.26811,1865.1,1864.3,3.63891232]
[1771867211658,0.00541184,1865.1,1864.3,3.63891232]
[1771867211962,3.7665473,1865.5,1864.5,3.63263562]
[1771867212267,0.26804,1865.6,1864.5,3.63263562]
[1771867212567,0.26804,1865.6,1864.6,3.63263562]
[1771867212755,3.7665473,1865.5,1864.6,3.63263562]
[1771867212956,3.7665473,1865.3,1864.4,3.63263562]
[1771867213561,0.26806,1865.4,1864.4,3.63263562]
[1771867214870,4.0346073,1865.4,1864.4,3.63263562]
[1771867215267,6.86249,1865.4,1864.4,3.63263562]
[1771867215468,0.26812,1865.0,1864.3,3.63891232]
[1771867216071,0.26805,1865.5,1864.3,3.63891232]
[1771867216267,0.62678997,1865.4,1864.5,3.63263562]
[1771867216468,0.26805,1865.5,1864.5,3.63263562]
[1771867216669,0.62666663,1865.4,1864.5,3.63263562]
[1771867216869,3.7665473,1865.2,1864.5,3.63263562]
[1771867217367,4.0346773,1864.9,1864.0,3.63263562]
[1771867217574,3.7665473,1865.0,1864.0,3.63263562]
[1771867217871,3.94050148,1864.7,1863.5,10.65400116]
[1771867218074,3.94050148,1864.4,1863.6,3.78119602]
[1771867218366,3.94050148,1864.4,1863.6,3.78653028]
[1771867218571,0.26822,1864.3,1863.6,3.78653028]
[1771867221677,3.9738498,1864.3,1863.6,3.78653028]
[1771867221880,0.26822,1864.3,1863.6,3.78653028]
[1771867222075,3.7056298,1864.6,1863.6,3.78653028]
[1771867223083,0.26819,1864.5,1863.6,3.78653028]
[1771867224181,3.9738198,1864.5,1863.6,3.78653028]
[1771867225580,0.62799672,1864.4,1863.6,3.78653028]
[1771867225782,3.7056298,1864.4,1863.6,3.78653028]
[1771867226372,0.26822,1864.3,1863.6,3.78653028]
[1771867227784,3.9738498,1864.3,1863.6,3.78653028]
[1771867227985,0.26828,1863.9,1863.4,3.77316635]
[1771867228183,3.9739098,1863.9,1862.6,3.54764394]
[1771867228484,3.9739098,1863.9,1863.0,3.54764394]
[1771867229187,3.97996532,1863.9,1863.0,3.55443109]
[1771867230786,0.27433552,1863.9,1863.2,3.77316635]
[1771867232390,0.63085053,1863.8,1863.2,3.77316635]
[1771867232586,0.27433552,1863.9,1863.2,3.77316635]
[1771867232787,0.63065375,1863.8,1863.2,3.77316635]
[1771867232982,0.27433552,1863.9,1863.2,3.77316635]
[1771867233283,0.63116664,1863.8,1863.2,3.77316635]
[1771867233588,6.59828,1864.4,1863.0,0.00678715]
[1771867233589,3.7056298,1864.6,1863.4,3.12505672]
[1771867233885,6.51548167,1864.5,1863.4,3.12505672]
[1771867234079,3.7056298,1864.6,1863.6,3.18135442]
[1771867234280,3.7056298,1864.6,1863.6,3.14135442]
[1771867234480,3.9738198,1864.5,1863.8,3.14135442]
[1771867234790,0.26819,1864.5,1863.8,3.14135442]
[1771867234986,0.00433276,1864.6,1863.8,3.14135442]
[1771867235488,0.00433276,1864.6,1864.0,3.12064947]
[1771867236087,3.70996256,1864.6,1863.8,3.13199223]
[1771867236291,0.26819,1864.5,1863.8,3.13199223]
[1771867236493,3.9738198,1864.5,1863.8,3.13199223]
[1771867236687,3.9738198,1864.5,1863.5,40.8]
[1771867236987,3.9738198,1864.5,1863.0,0.00678715]
[1771867236988,3.9738798,1864.1,1863.4,3.02949597]
[1771867237386,0.26825,1864.1,1863.4,3.02949597]
[1771867239393,3.9738198,1864.5,1863.4,3.02949597]
[1771867239594,3.9738198,1864.5,1863.2,40.8]
[1771867239595,6.52085814,1864.4,1863.6,2.9932606]
[1771867239793,3.9738198,1864.5,1863.6,2.9932606]
[1771867240086,10.22647709,1864.4,1863.6,2.9932606]
[1771867240293,3.7056298,1864.4,1863.6,2.9932606]
[1771867240484,0.26822,1864.3,1863.6,2.9932606]
[1771867241187,9.3198498,1864.3,1863.4,2.9996704]
[1771867241390,3.7056298,1864.2,1863.4,2.9996704]
[1771867241894,0.26822,1864.3,1863.4,2.9996704]
[1771867242293,3.9738498,1864.3,1863.4,2.9996704]
[1771867242692,3.9738498,1864.3,1863.0,3.0574746]
[1771867242996,3.9738498,1864.3,1863.4,3.04269488]
[1771867243388,3.9738498,1864.3,1863.0,3.04948203]
[1771867243701,3.9738998,1864.0,1863.0,3.04948203]
[1771867243989,0.26832,1863.7,1863.0,0.00678715]
[1771867244188,3.9739498,1863.7,1863.0,0.00678715]
[1771867244391,3.9739498,1863.7,1863.0,3.04194503]
[1771867244986,3.7056298,1863.3,1863.0,0.00678715]
[1771867245187,3.9739898,1863.4,1862.8,3.01209822]
[1771867245395,0.26838,1863.2,1862.4,3.01209822]
[1771867245598,0.62793844,1863.1,1862.5,3.01209822]
[1771867245791,3.9740098,1863.2,1862.5,3.01209822]
[1771867245988,3.9740098,1863.2,1862.3,4.41933894]
[1771867245989,4.33350251,1863.1,1862.3,4.41933894]
[1771867246189,0.26845,1862.7,1862.3,0.00433135]
[1771867246488,0.26848,1862.5,1861.8,3.00497805]
[1771867246692,3.9740398,1863.0,1861.9,40.8]
[1771867246997,0.62717047,1862.9,1862.0,10.16690238]
[1771867247190,0.26841,1863.0,1862.1,3.02436318]
[1771867247393,3.7056298,1863.4,1862.1,3.02436318]
[1771867247598,0.26833,1863.6,1862.3,3.02436318]
[1771867247599,3.7056298,1863.3,1862.3,3.02436318]
[1771867247895,3.99406729,1863.1,1862.3,3.02436318]
[1771867248497,0.62661291,1863.0,1862.3,3.02436318]
[1771867248691,3.99406729,1863.1,1862.3,3.02436318]
[1771867248893,0.62661565,1863.0,1862.3,3.02436318]
[1771867249093,3.99406729,1863.1,1862.3,3.02436318]
[1771867249288,0.62660227,1863.0,1862.3,3.02436318]
[1771867249500,3.99406729,1863.1,1862.3,3.02436318]
[1771867249688,0.62623635,1863.0,1862.3,3.02436318]
[1771867249894,4.25606413,1863.0,1862.1,3.00462613]
[1771867250295,4.25606413,1863.0,1862.2,3.00462613]
[1771867250599,4.25606413,1863.0,1862.3,9.90768324]
[1771867250995,4.25606413,1863.0,1862.3,2.9855544]
[1771867251692,0.26841,1863.0,1862.3,2.9855544]
[1771867251899,0.00641316,1863.1,1862.5,2.96934645]
[1771867252794,0.00641316,1863.1,1862.0,0.00624632]
[1771867252795,3.99406729,1863.1,1862.1,2.98639866]
[1771867253299,4.26245729,1863.1,1862.2,2.9779444]
[1771867255299,4.26245729,1863.1,1862.3,9.90322913]
[1771867255698,4.26245729,1863.1,1862.3,2.98496738]
[1771867256297,0.27480316,1863.1,1862.3,2.98496738]
[1771867256600,0.00641316,1863.1,1862.5,2.97692422]
[1771867256901,3.98765413,1863.3,1862.6,7.0333243]
[1771867257100,3.98765413,1863.3,1862.7,2.96404004]
[1771867257291,4.25599413,1863.5,1862.7,2.96404004]
[1771867257495,0.62500385,1863.4,1862.7,2.96404004]
[1771867257694,4.25599413,1863.5,1862.7,2.96404004]
[1771867257895,4.2610323,1863.5,1862.7,2.96404004]
[1771867258900,0.00503817,1863.5,1862.9,3.00310079]
[1771867259295,1e-08,1863.5,1863.1,2.99449168]
[1771867259497,3.98765414,1863.5,1862.8,2.99449168]
[1771867259697,3.98765414,1863.5,1862.6,2.99492905]
[1771867260097,0.26835,1863.4,1862.8,2.98669622]
[1771867260298,1e-08,1863.5,1862.8,2.98669622]
[1771867260897,1e-08,1863.5,1862.4,2.95702983]
[1771867261104,3.98765413,1863.4,1862.4,2.95702983]
[1771867261298,3.98765413,1863.4,1862.5,2.95702983]
[1771867261499,3.98765413,1863.2,1862.5,2.95702983]
[1771867261897,3.98765413,1863.2,1862.1,2.94885623]
[1771867262093,3.98765413,1863.0,1862.1,2.94885623]
[1771867262298,4.88106742,1862.9,1862.1,6.83467434]
[1771867262499,3.98765413,1862.5,1861.5,2.94885623]
[1771867262993,4.25614413,1862.4,1861.7,3.38058176]
[1771867263197,4.25614413,1862.4,1861.8,3.38058176]
[1771867264001,3.98765413,1862.6,1862.0,3.34923704]
[1771867264398,4.25608413,1862.9,1862.1,6.02779072]
[1771867264601,4.25608413,1862.9,1862.2,3.34299072]
[1771867264805,4.25608413,1862.9,1862.1,6.84318412]
[1771867265104,3.98765413,1862.9,1862.0,3.42025736]
[1771867265506,3.98765413,1862.9,1862.2,3.41401104]
[1771867265716,4.25605413,1863.1,1862.2,3.41401104]
[1771867265905,0.62536999,1863.0,1862.4,3.4031869]
[1771867266106,4.25605413,1863.1,1862.4,3.4031869]
[1771867266302,4.61315555,1863.0,1862.4,3.4031869]
[1771867266506,3.98765413,1863.0,1862.4,3.4031869]
[1771867266704,0.2684,1863.1,1862.5,6.11101446]
[1771867266907,3.98765413,1863.2,1862.5,3.42621446]
[1771867267309,1e-08,1863.5,1862.1,6.91375718]
[1771867267310,4.25606413,1863.0,1862.1,3.41581735]
[1771867267804,4.25606413,1863.0,1862.2,3.4163195]
[1771867268202,4.25606413,1863.0,1862.0,3.41214734]
[1771867268405,4.25611413,1862.6,1862.0,0.00624632]
[1771867268606,4.25611413,1862.6,1861.6,3.40590102]
[1771867268802,4.25611413,1862.6,1861.7,3.45087438]
[1771867269002,4.61388262,1862.5,1861.7,3.45087438]
[1771867269207,3.98765413,1862.5,1861.7,6.13567438]
[1771867269508,3.98765413,1862.5,1861.7,3.45087438]
[1771867269709,3.98765413,1862.5,1861.7,6.14044335]
[1771867269910,3.98765413,1862.5,1861.8,3.42926011]
[1771867270207,0.26846,1862.6,1861.9,6.11406011]
[1771867270409,0.26846,1862.6,1861.9,3.42926011]
[1771867270609,3.98765413,1863.0,1862.1,3.42926011]
[1771867270908,0.2684,1863.1,1862.1,3.42926011]
[1771867270909,0.62686049,1862.9,1862.1,3.42926011]
[1771867271211,4.25628413,1861.5,1860.0,3.90569779]
[1771867271408,8.03988466,1861.4,1860.6,3.90569779]
[1771867271610,3.98765413,1861.9,1860.6,3.90569779]
[1771867271813,4.25620413,1862.1,1860.8,3.90569779]
[1771867272009,4.61360427,1862.0,1860.8,3.91226874]
[1771867272205,3.98765413,1861.8,1861.0,3.90569779]
[1771867272405,0.27497419,1862.1,1861.0,3.90569779]
[1771867272406,3.98765413,1862.0,1861.0,3.90569779]
[1771867272608,3.98765413,1862.0,1861.2,3.90569779]
[1771867273115,3.98765413,1862.0,1861.3,23.25422242]
[1771867273311,0.00642419,1862.1,1861.4,3.90569779]
[1771867273514,0.00642419,1862.1,1861.5,3.90569779]
[1771867273816,3.98765413,1861.9,1861.4,12.26156802]
[1771867274014,4.25623413,1861.9,1860.8,0.00657095]
[1771867274217,3.98765413,1861.7,1860.9,16.16726581]
[1771867274412,3.98765413,1861.7,1860.8,0.00657095]
[1771867274413,3.98765413,1861.5,1860.8,0.00657095]
[1771867274717,3.98765413,1861.3,1860.8,0.00657095]
[1771867275313,3.98765413,1861.3,1860.8,16.17383676]
[1771867275519,4.25626413,1861.6,1860.9,3.90569779]
[1771867275920,4.25626413,1861.6,1861.0,12.26156802]
[1771867276321,4.25626413,1861.6,1860.8,0.00657095]
[1771867276322,3.98765413,1861.4,1860.8,6.28436236]
[1771867277316,3.98765413,1861.4,1860.8,0.00585394]
[1771867277522,3.98765413,1861.4,1860.8,10.19591409]
[1771867277915,0.26861,1861.6,1860.9,4.51721977]
[1771867278119,4.69679899,1861.7,1861.0,4.51721977]
[1771867278316,4.69679899,1861.7,1861.1,4.51721977]
[1771867278522,0.26858,1861.8,1861.1,4.51721977]
[1771867278722,4.96537899,1861.8,1861.2,10.80158213]
[1771867278922,4.96537899,1861.8,1861.2,4.51721977]
[1771867279117,0.26858,1861.8,1861.4,4.51721977]
[1771867279420,4.70322318,1862.1,1861.3,6.28436236]
[1771867279421,0.00642419,1862.1,1861.6,4.51721977]
[1771867279620,4.70322318,1862.1,1861.6,4.51721977]
[1771867279822,4.96534899,1862.0,1861.3,4.51721977]
[1771867280220,4.96534899,1862.0,1861.3,6.28436236]
[1771867280425,0.26861,1861.6,1861.0,4.83366391]
[1771867280723,0.26861,1861.6,1861.2,4.83366391]
[1771867281613,0.26861,1861.6,1860.9,4.83366391]
[1771867281818,0.26861,1861.6,1860.2,3.42653823]
[1771867281819,5.13149259,1861.6,1861.0,11.11802627]
[1771867282015,5.13149259,1861.6,1861.0,6.28436236]
[1771867282219,4.86288259,1861.3,1860.8,0.00585394]
[1771867282430,4.86288259,1861.1,1860.2,4.83366391]
[1771867283022,4.86288259,1860.7,1860.2,4.88254169]
[1771867283228,0.26872,1860.8,1860.2,9.7162056]
[1771867283528,0.27361124,1860.8,1860.2,9.72208354]
[1771867283725,0.00489124,1860.8,1860.3,4.83366391]
[1771867283923,0.26866,1861.3,1860.4,4.83366391]
[1771867284124,0.26866,1861.3,1860.5,4.83366391]
[1771867284424,0.26866,1861.3,1860.7,4.83366391]
[1771867284926,0.00380384,1861.3,1860.9,4.83366391]
[1771867285223,0.00380384,1861.3,1860.4,4.83366391]
[1771867285422,0.00380384,1861.3,1860.6,4.83366391]
[1771867285828,0.00380384,1861.3,1860.6,4.84023486]
[1771867286123,0.26874,1860.7,1860.2,4.83367185]
[1771867289131,4.70004439,1860.9,1860.2,7.94e-06]
[1771867289326,8.15302616,1860.8,1860.2,7.94e-06]
[1771867290029,0.26875,1860.6,1860.2,7.94e-06]
[1771867290228,1.53356083,1860.6,1860.2,7.94e-06]
[1771867290431,0.26875,1860.6,1860.2,7.94e-06]
[1771867290729,1.66141098,1860.6,1860.2,7.94e-06]
[1771867290930,1.66141098,1860.6,1859.7,4.83366391]
[1771867291134,8.27289098,1860.6,1859.7,4.83366391]
[1771867291326,8.2648663,1860.4,1859.7,4.83366391]
[1771867291532,1.6526263,1860.2,1859.1,4.83366391]
[1771867291834,1.6526263,1860.2,1859.1,11.70448564]
[1771867292030,1.96739102,1859.0,1858.0,4.83366391]
[1771867292328,1.96739102,1859.0,1855.8,0.5364]
[1771867292329,0.26874,1860.7,1859.2,4.83366391]
[1771867292531,1.96739102,1861.0,1859.5,5.10257391]
[1771867293136,1.97173416,1861.0,1859.7,4.83366391]
[1771867293341,2.92951918,1860.7,1859.9,4.83366391]
[1771867293531,2.92951918,1860.7,1859.7,4.83366391]
[1771867293532,9.54136918,1860.5,1859.7,4.83366391]
[1771867293732,2.6715858,1860.7,1859.9,4.83366391]
[1771867294235,2.92994404,1860.6,1860.0,7.001]
[1771867294435,2.66119404,1860.5,1860.0,6.57108]
[1771867294632,0.26881,1860.2,1859.8,7.001]
[1771867294933,2.45326558,1860.6,1859.9,4.83366391]
[1771867295536,2.74155808,1860.8,1860.0,11.83466391]
[1771867295929,2.74155808,1860.8,1860.0,4.83366391]
[1771867296330,2.74155808,1860.8,1860.1,7.001]
[1771867296526,2.74155808,1860.8,1860.0,4.83366391]
[1771867296833,0.26873,1860.8,1860.2,4.83366391]
[1771867297034,2.49688079,1861.0,1860.2,4.83366391]
[1771867297736,2.76559079,1861.0,1860.3,7.001]
[1771867298035,2.49688079,1861.0,1860.4,4.83366391]
[1771867298245,0.00434314,1861.0,1860.4,4.83366391]
[1771867298537,2.47101824,1861.4,1860.4,4.83366391]
[1771867298730,0.62932477,1861.3,1860.4,4.83366391]
[1771867298936,2.47101824,1861.4,1860.4,4.68366391]
[1771867299138,0.62909194,1861.3,1860.4,4.68366391]
[1771867299330,0.00643779,1861.3,1860.4,4.68366391]
[1771867299936,0.00643779,1861.3,1860.6,4.83366391]
[1771867300136,0.00643779,1861.3,1860.8,4.83366391]
[1771867300434,0.63040056,1861.2,1860.8,4.83366391]
[1771867300642,2.63233702,1861.8,1860.8,4.83366391]
[1771867300937,0.6305568,1861.7,1860.8,4.83366391]
[1771867301240,0.26856,1862.0,1860.8,4.83366391]
[1771867301241,0.6305568,1861.6,1860.8,4.83366391]
[1771867301439,3.05520221,1862.0,1861.0,4.83366391]
[1771867301739,3.05522221,1861.8,1861.1,7.002]
[1771867301939,0.63063523,1861.7,1861.3,4.83366391]
[1771867302237,0.63063523,1861.7,1861.2,11.83566391]
[1771867302431,3.40610038,1861.7,1861.2,7.002]
[1771867302632,0.63063523,1861.6,1861.2,7.002]
[1771867303041,0.63063523,1861.6,1861.3,7.002]
[1771867303432,0.26858,1861.8,1861.3,11.83566391]
[1771867303636,0.6310615,1861.7,1861.4,4.83366391]
[1771867303943,0.26858,1861.8,1861.4,4.83366391]
[1771867304234,0.2687,1861.0,1859.8,4.83366391]
[1771867304433,0.2687,1861.0,1860.2,4.83366391]
[1771867304636,0.26863,1861.5,1860.4,4.83366391]
[1771867304831,2.72754243,1861.6,1860.4,4.83366391]
[1771867304832,0.26867,1861.2,1860.5,4.83366391]
[1771867305034,3.04825155,1861.5,1860.5,4.83366391]
[1771867305237,9.46684669,1861.4,1860.5,4.83780863]
[1771867305434,2.77963155,1861.4,1860.5,4.83780863]
[1771867305634,0.26862,1861.5,1860.6,6.92299274]
[1771867305834,2.78622313,1862.0,1860.8,4.83366391]
[1771867306031,0.00554587,1862.0,1861.0,4.83366391]
[1771867306432,0.00554587,1862.0,1861.2,4.83366391]
[1771867306738,2.14261587,1862.0,1861.3,7.002]
[1771867307032,0.26856,1861.9,1861.4,7.003]
[1771867307236,2.39415099,1861.9,1861.2,4.83366391]
[1771867307539,2.39415099,1861.9,1861.2,11.83666391]
[1771867307942,6.68264792,1861.8,1861.2,4.83366391]
[1771867308242,0.26861,1861.6,1861.2,4.81745303]
[1771867308738,0.26861,1861.6,1861.1,11.82045303]
[1771867308938,0.26861,1861.6,1861.1,4.81745303]
[1771867309141,2.55761305,1861.6,1860.9,4.81745303]
[1771867309641,9.16550305,1861.6,1860.9,4.81745303]
[1771867309836,0.26861,1861.6,1860.9,4.81745303]
[1771867310141,0.26866,1861.3,1860.7,4.81745303]
[1771867311339,9.15223071,1861.8,1860.7,4.81745303]
[1771867311540,6.68970006,1861.7,1860.7,4.81745303]
[1771867311739,0.26859,1861.8,1860.7,4.81745303]
[1771867312037,0.26859,1861.8,1860.9,4.81745303]
[1771867313230,0.00554587,1862.0,1861.1,4.81745303]
[1771867313436,0.26851,1862.3,1861.1,4.81745303]
[1771867313633,0.26851,1862.3,1861.3,4.81745303]
[1771867314441,0.27473938,1862.3,1861.3,4.81745303]
[1771867314643,0.27473938,1862.3,1861.5,4.81745303]
[1771867314841,0.00622938,1862.3,1861.5,4.81745303]
[1771867315238,0.26844,1862.8,1861.7,4.81745303]
[1771867315441,9.37992509,1862.8,1861.7,4.81745303]
[1771867315644,2.77629509,1862.8,1861.7,4.81745303]
[1771867315844,0.62533297,1862.7,1861.7,4.81745303]
[1771867316041,0.26844,1862.8,1861.9,4.81745303]
[1771867316244,0.00595335,1862.8,1861.9,4.82423505]
[1771867316442,0.00595335,1862.8,1862.1,4.81745303]
[1771867316842,0.26837,1863.3,1862.1,4.81745303]
[1771867317043,0.26837,1863.3,1862.3,4.81745303]
[1771867317243,2.83327685,1863.9,1862.5,4.81745303]
[1771867317447,0.62381666,1863.8,1862.5,4.81745303]
[1771867317644,2.83327685,1863.9,1862.7,4.81745303]
[1771867317645,0.26829,1863.9,1862.7,4.81745303]
[1771867317848,0.63070695,1863.8,1862.7,4.81745303]
[1771867318048,0.00682913,1863.8,1862.9,4.81745303]
[1771867318939,0.00682913,1863.8,1863.1,4.81745303]
[1771867319138,9.25967202,1864.4,1863.1,4.81745303]
[1771867319350,0.26821,1864.4,1863.3,4.81745303]
[1771867320142,9.51815746,1864.9,1863.5,4.81745303]
[1771867320446,3.27588772,1864.8,1863.5,4.81745303]
[1771867320646,0.26814,1864.9,1863.5,4.81745303]
[1771867320846,0.26814,1864.9,1863.7,4.81745303]
[1771867321042,0.26811,1865.1,1863.7,4.81745303]
[1771867321351,2.88070303,1864.9,1863.9,4.81745303]
[1771867321550,9.21024303,1864.5,1863.7,4.81745303]
[1771867321747,9.47926206,1864.2,1863.4,4.81745303]
[1771867322052,2.75233813,1863.7,1863.0,4.81745303]
[1771867322350,0.26833,1863.6,1863.0,4.81745303]
[1771867323253,0.26833,1863.6,1862.8,4.81745303]
[1771867323254,3.03001138,1863.4,1862.8,4.81745303]
[1771867323453,3.03001138,1863.4,1862.5,4.81745303]
[1771867323648,6.86986,1863.4,1862.5,4.81745303]
[1771867323849,3.0299896,1863.4,1862.5,4.81745303]
[1771867324049,0.00687738,1863.6,1862.7,4.81745303]
[1771867324350,0.00687738,1863.6,1862.7,4.82268456]
[1771867324551,0.00687738,1863.6,1862.9,4.81745303]
[1771867324850,0.26828,1863.9,1862.9,4.81745303]
[1771867325049,0.26828,1863.9,1863.1,4.81745303]
[1771867325449,2.94631026,1863.9,1863.1,4.81745303]
[1771867325649,9.55007879,1863.9,1863.1,4.81745303]
[1771867325849,2.95034879,1863.9,1863.1,4.81745303]
[1771867326047,0.27231853,1863.9,1863.1,4.81745303]
[1771867326852,0.00403853,1863.9,1863.1,4.81745303]
[1771867327751,0.00403853,1863.9,1863.3,4.81745303]
[1771867327954,0.26823,1864.3,1863.3,4.81745303]
[1771867328348,0.26816,1864.8,1863.5,4.81745303]
[1771867328751,9.51635151,1864.8,1863.7,4.81745303]
[1771867328947,9.51635151,1864.8,1863.6,6.86715985]
[1771867328948,2.92399735,1864.8,1863.9,4.81745303]
[1771867329151,0.27238584,1864.8,1863.9,4.81745303]
[1771867329658,0.26809,1865.3,1864.1,4.81745303]
[1771867329860,0.26801,1865.8,1864.1,4.81745303]
[1771867330160,0.26801,1865.8,1864.3,4.81745303]
[1771867330357,2.64459182,1866.2,1864.4,4.81745303]
[1771867330655,0.00606544,1866.2,1864.5,5.08564303]
[1771867330856,0.26796,1866.1,1864.5,5.08564303]
[1771867331058,0.26796,1866.1,1864.7,4.81745303]
[1771867331459,0.26796,1866.1,1864.9,4.81745303]
[1771867331753,0.26796,1866.1,1865.1,4.81745303]
[1771867332157,2.8458461,1865.9,1865.1,4.81745303]
[1771867332360,0.26799,1865.9,1865.1,4.81745303]
[1771867333762,0.26799,1865.9,1865.2,4.81745303]
[1771867333956,0.00606544,1866.2,1865.2,4.81745303]
[1771867334357,0.00606544,1866.2,1865.4,4.81745303]
[1771867335155,0.26796,1866.1,1865.4,4.81745303]
[1771867335861,2.81370102,1866.1,1865.4,4.81745303]
[1771867336559,0.26796,1866.1,1865.4,4.81745303]
[1771867337457,0.26796,1866.1,1864.4,0.27433725]
[1771867337458,2.45913656,1865.8,1865.0,4.81745303]
[1771867337760,9.32668667,1865.3,1864.5,4.8147042]
[1771867337961,0.2681,1865.1,1864.5,4.8147042]
[1771867338159,6.86358,1865.1,1864.5,4.8147042]
[1771867338364,9.31395969,1865.1,1864.4,0.00614725]
[1771867339160,0.26817,1864.7,1864.3,4.55348061]
[1771867339462,3.95966992,1864.7,1863.6,4.8147042]
[1771867339960,0.26817,1864.7,1863.6,4.8147042]
[1771867340159,0.27284719,1864.7,1863.6,4.82023024]
[1771867340361,0.27284719,1864.7,1863.8,4.79361191]
[1771867341660,0.27284719,1864.7,1864.0,4.79361191]
[1771867341865,0.2681,1865.2,1864.0,4.79361191]
[1771867342164,0.2681,1865.2,1864.2,4.79361191]
[1771867342966,0.27324498,1865.2,1864.2,4.79361191]
[1771867343363,3.54091964,1865.8,1864.4,4.79361191]
[1771867343670,3.54091964,1865.7,1864.5,6.87601349]
[1771867343968,3.80893964,1865.7,1864.7,4.79361191]
[1771867344467,0.26808,1865.3,1864.7,4.79361191]
[1771867344659,10.38352664,1865.3,1863.7,4.79361191]
[1771867344858,0.2681,1865.1,1863.8,40.8]
[1771867345060,0.2681,1865.1,1863.9,4.79361191]
[1771867345258,0.2681,1865.1,1864.0,4.79361191]
[1771867345663,3.7758647,1865.1,1864.0,4.79361191]
[1771867345864,10.3713847,1865.1,1864.0,4.79361191]
[1771867346063,0.26813,1864.9,1864.0,4.79361191]
[1771867346264,3.76321348,1864.9,1864.0,4.79361191]
[1771867346467,0.26813,1864.9,1864.0,4.79361191]
[1771867346861,0.26813,1864.9,1864.2,4.79361191]
[1771867349768,0.00468851,1865.7,1864.4,4.79361191]
[1771867349968,0.26803,1865.6,1864.4,4.79361191]
[1771867350173,0.26803,1865.6,1864.6,4.79361191]
[1771867350575,0.26803,1865.6,1863.8,40.8]
[1771867350576,3.6752956,1865.6,1864.8,4.79361191]
[1771867350767,0.26803,1865.6,1864.8,4.79361191]
[1771867352477,0.26806,1865.4,1864.8,4.79361191]
[1771867352679,0.26812,1865.0,1863.9,4.79361191]